fUST/lending_fUST_20251210
["ID","MTS","AMOUNT","RATE_DAILY","PERIOD"]
[398110841,1765379438476,-662.37,0.00014981,2]
[398110842,1765379438486,-500.0,0.00014981,2]
[398110843,1765379438495,-500.0,0.00014981,2]
[398110844,1765379438504,-500.0,0.00014981,2]
[398110845,1765379438514,-500.0,0.00014981,2]
[398110846,1765379438524,-500.0,0.00014981,2]
[398110847,1765379438533,-648.62853512,0.00014981,2]
[398110848,1765379438543,-500.0,0.00014981,2]
[398110849,1765379438553,-656.050088,0.00014981,2]
[398110850,1765379438563,-500.0,0.00014981,2]
[398110851,1765379438573,-523.22573833,0.00014981,2]
[398110852,1765379438583,-500.0,0.00014981,2]
[398110853,1765379438592,-500.0,0.00014981,2]
[398110854,1765379438756,-500.0,0.00014981,2]
[398110855,1765379438766,-746.82,0.00014981,2]
[398110856,1765379438775,-500.0,0.00014981,2]
[398110857,1765379438785,-500.0,0.00014981,2]
[398110858,1765379438795,-2041.58,0.00014981,2]
[398110859,1765379438804,-4965.72,0.00014981,2]
[398110860,1765379438814,-500.0,0.00014981,2]
[398110861,1765379438823,-500.0,0.00014981,2]
[398110862,1765379438832,-500.0,0.00014981,2]
[398110863,1765379438842,-1617.38,0.00014981,2]
[398110864,1765379438851,-286.54728197,0.00014981,2]
[398110865,1765379438861,-500.0,0.00014981,2]
[398110866,1765379438871,-1483.29,0.00014981,2]
[398110868,1765379438882,-300.92482781,0.00014981,2]
[398110922,1765379440227,-624.75,0.0001498,2]
[398110924,1765379440240,-1548.42008088,0.0001498,2]
[398111242,1765379443384,-169.38772644,0.0001425,2]
[398111244,1765379443394,-310.94227356,0.00014979,2]
[398111666,1765379447203,-304.89790758,0.0001425,2]
[398111668,1765379447213,-846.09169355,0.0001425,2]
[398111670,1765379447224,-740.98772644,0.00014979,2]
[398111672,1765379447234,-500.0,0.00014979,2]
[398111674,1765379447244,-2258.37,0.00014979,2]
[398111676,1765379447254,-1758.01991912,0.0001498,2]
[398111678,1765379447264,-9744.05,0.0001498,2]
[398111680,1765379447274,-199.07517219,0.00014981,2]
[398111682,1765379447283,-719.07,0.00014981,2]
[398111684,1765379447293,-500.0,0.00014981,2]
[398111686,1765379447303,-2493.2,0.00014981,2]
[398111688,1765379447313,-500.0,0.00014981,2]
[398111690,1765379447322,-500.0,0.00014981,2]
[398111692,1765379447332,-976.31,0.00014981,2]
[398111695,1765379447342,-500.0,0.00014981,2]
[398111697,1765379447351,-500.0,0.00014981,2]
[398111699,1765379447364,-536.79,0.00014981,2]
[398111701,1765379447373,-603.49230857,0.00014981,2]
[398111703,1765379447383,-1505.02,0.00014981,2]
[398111705,1765379447393,-500.0,0.00014981,2]
[398111707,1765379447403,-500.0,0.00014981,2]
[398111709,1765379447413,-2310.65,0.00014981,2]
[398111711,1765379447422,-500.0,0.00014981,2]
[398111713,1765379447433,-522.58,0.00014981,2]
[398111715,1765379447443,-2709.64,0.00014981,2]
[398111717,1765379447452,-827.93,0.00014981,2]
[398111719,1765379447462,-500.0,0.00014981,2]
[398111721,1765379447471,-500.0,0.00014981,2]
[398111723,1765379447481,-500.0,0.00014981,2]
[398111725,1765379447490,-500.0,0.00014981,2]
[398111727,1765379447500,-500.0,0.00014981,2]
[398111729,1765379447509,-500.0,0.00014981,2]
[398111731,1765379447519,-1606.2,0.00014981,2]
[398111733,1765379447528,-912.04,0.00014981,2]
[398111735,1765379447538,-500.0,0.00014981,2]
[398111737,1765379447547,-500.0,0.00014981,2]
[398111739,1765379447556,-500.0,0.00014981,2]
[398111741,1765379447565,-500.0,0.00014981,2]
[398111743,1765379447575,-500.0,0.00014981,2]
[398111745,1765379447584,-500.0,0.00014981,2]
[398111747,1765379447593,-500.0,0.00014981,2]
[398111750,1765379447603,-1972.82,0.00014981,2]
[398111752,1765379447612,-500.0,0.00014981,2]
[398111754,1765379447621,-500.0,0.00014981,2]
[398111756,1765379447631,-500.0,0.00014981,2]
[398111758,1765379447640,-500.0,0.00014981,2]
[398111760,1765379447649,-500.0,0.00014981,2]
[398111762,1765379447659,-500.0,0.00014981,2]
[398111764,1765379447668,-500.0,0.00014981,2]
[398111766,1765379447677,-3085.51,0.00014981,2]
[398111768,1765379447685,-500.0,0.00014981,2]
[398111770,1765379447694,-500.0,0.00014981,2]
[398111772,1765379447703,-500.0,0.00014981,2]
[398111774,1765379447713,-500.0,0.00014981,2]
[398111776,1765379447722,-500.0,0.00014981,2]
[398111778,1765379447731,-500.0,0.00014981,2]
[398111780,1765379447740,-1430.74,0.00014981,2]
[398111782,1765379447749,-500.0,0.00014981,2]
[398111784,1765379447758,-500.0,0.00014981,2]
[398111786,1765379447767,-500.0,0.00014981,2]
[398111788,1765379447776,-500.34792856,0.00014981,2]
[398111790,1765379447786,-158.53131904,0.00014981,2]
[398111792,1765379447795,-500.0,0.00014981,2]
[398111794,1765379447804,-500.0,0.00014981,2]
[398111797,1765379447813,-9179.31,0.00014981,2]
[398111799,1765379447823,-500.0,0.00014981,2]
[398111801,1765379447832,-642.84,0.00014981,2]
[398111803,1765379447841,-5658.29,0.00014981,2]
[398111805,1765379447850,-500.0,0.00014981,2]
[398111807,1765379447859,-722.22,0.00014981,2]
[398111809,1765379447868,-500.0,0.00014981,2]
[398111811,1765379447877,-500.0,0.00014981,2]
[398111813,1765379447886,-520.89592378,0.00014981,2]
[398111815,1765379447895,-500.0,0.00014981,2]
[398111817,1765379447904,-500.0,0.00014981,2]
[398111819,1765379447913,-500.0,0.00014981,2]
[398111821,1765379447922,-792.48,0.00014981,2]
[398111823,1765379447931,-500.0,0.00014981,2]
[398111825,1765379447941,-3346.05,0.00014981,2]
[398111827,1765379447951,-500.0,0.00014981,2]
[398111829,1765379447960,-2879.28,0.00014981,2]
[398111831,1765379447968,-500.67563551,0.00014981,2]
[398111833,1765379447977,-295.30595545,0.00014981,2]
[398111835,1765379447986,-1213.39,0.00014981,2]
[398111837,1765379447995,-500.0,0.00014981,2]
[398111839,1765379448004,-500.0,0.00014981,2]
[398111841,1765379448014,-500.0,0.00014981,2]
[398111843,1765379448023,-500.0,0.00014981,2]
[398111845,1765379448032,-500.0,0.00014981,2]
[398111847,1765379448041,-1235.44,0.00014981,2]
[398111849,1765379448050,-500.0,0.00014981,2]
[398111851,1765379448059,-500.0,0.00014981,2]
[398111853,1765379448068,-500.33341293,0.00014981,2]
[398111855,1765379448077,-2432.81,0.00014981,2]
[398111857,1765379448086,-500.34934364,0.00014981,2]
[398111859,1765379448095,-809.01,0.00014981,2]
[398111861,1765379448103,-995.84,0.00014981,2]
[398111863,1765379448113,-500.0,0.00014981,2]
[398111865,1765379448123,-892.91,0.00014981,2]
[398111867,1765379448132,-500.0,0.00014981,2]
[398111869,1765379448141,-500.0,0.00014981,2]
[398111871,1765379448149,-500.0,0.00014981,2]
[398111873,1765379448158,-500.0,0.00014981,2]
[398111875,1765379448167,-500.0,0.00014981,2]
[398111877,1765379448176,-500.0,0.00014981,2]
[398111880,1765379448189,-500.0,0.00014981,2]
[398111881,1765379448198,-500.0,0.00014981,2]
[398111884,1765379448207,-951.35,0.00014981,2]
[398111886,1765379448217,-500.0,0.00014981,2]
[398111888,1765379448226,-1084.64,0.00014981,2]
[398111890,1765379448235,-500.0,0.00014981,2]
[398111891,1765379448243,-500.0,0.00014981,2]
[398111894,1765379448253,-500.0,0.00014981,2]
[398111896,1765379448262,-500.0,0.00014981,2]
[398111898,1765379448270,-500.0,0.00014981,2]
[398111900,1765379448279,-500.0,0.00014981,2]
[398111902,1765379448288,-828.9,0.00014981,2]
[398111904,1765379448297,-500.0,0.00014981,2]
[398111905,1765379448306,-500.0,0.00014981,2]
[398111908,1765379448315,-500.0,0.00014981,2]
[398111910,1765379448325,-500.0,0.00014981,2]
[398111912,1765379448334,-500.0,0.00014981,2]
[398111914,1765379448343,-500.0,0.00014981,2]
[398111916,1765379448353,-500.0,0.00014981,2]
[398111918,1765379448365,-500.0,0.00014981,2]
[398111920,1765379448375,-1011.25,0.00014981,2]
[398111922,1765379448385,-640.54,0.00014981,2]
[398111924,1765379448394,-1666.98,0.00014981,2]
[398111926,1765379448408,-1666.98,0.00014981,2]
[398111928,1765379448418,-500.0,0.00014981,2]
[398111930,1765379448428,-500.0,0.00014981,2]
[398111932,1765379448441,-1666.98,0.00014981,2]
[398111934,1765379448452,-500.0,0.00014981,2]
[398111936,1765379448463,-500.0,0.00014981,2]
[398111938,1765379448472,-552.46,0.00014981,2]
[398111940,1765379448482,-500.0,0.00014981,2]
[398111942,1765379448492,-500.0,0.00014981,2]
[398111944,1765379448502,-500.0,0.00014981,2]
[398111946,1765379448511,-500.0,0.00014981,2]
[398111948,1765379448521,-500.0,0.00014981,2]
[398111950,1765379448530,-1012.58,0.00014981,2]
[398111952,1765379448541,-500.0,0.00014981,2]
[398111963,1765379448638,-500.0,0.00014981,2]
[398111965,1765379448648,-500.0,0.00014981,2]
[398111967,1765379448657,-500.0,0.00014981,2]
[398111969,1765379448666,-500.0,0.00014981,2]
[398111971,1765379448676,-1712.24,0.00014981,2]
[398111973,1765379448685,-502.31724416,0.00014981,2]
[398111975,1765379448694,-504.78723318,0.00014981,2]
[398111977,1765379448703,-500.0,0.00014981,2]
[398111979,1765379448712,-500.0,0.00014981,2]
[398111981,1765379448721,-500.0,0.00014981,2]
[398111984,1765379448730,-500.0,0.00014981,2]
[398111986,1765379448740,-500.0,0.00014981,2]
[398111988,1765379448749,-500.0,0.00014981,2]
[398111990,1765379448758,-500.0,0.00014981,2]
[398111991,1765379448767,-500.0,0.00014981,2]
[398111993,1765379448776,-500.0,0.00014981,2]
[398111996,1765379448785,-6623.37,0.00014981,2]
[398111997,1765379448794,-500.0,0.00014981,2]
[398112000,1765379448803,-500.0,0.00014981,2]
[398112002,1765379448813,-500.0,0.00014981,2]
[398112004,1765379448822,-500.0,0.00014981,2]
[398112006,1765379448830,-500.0,0.00014981,2]
[398112008,1765379448839,-500.0,0.00014981,2]
[398112010,1765379448848,-500.0,0.00014981,2]
[398112012,1765379448857,-1851.47,0.00014981,2]
[398112014,1765379448866,-559.68,0.00014981,2]
[398112016,1765379448876,-1329.17,0.00014981,2]
[398112018,1765379448884,-500.0,0.00014981,2]
[398112020,1765379448893,-852.06,0.00014981,2]
[398112021,1765379448902,-2940.4,0.00014981,2]
[398112023,1765379448912,-500.0,0.00014981,2]
[398112026,1765379448927,-500.0,0.00014981,2]
[398112028,1765379448937,-1003.81,0.00014981,2]
[398112030,1765379448947,-1768.58,0.00014981,2]
[398112032,1765379448955,-500.0,0.00014981,2]
[398112033,1765379448964,-500.0,0.00014981,2]
[398112036,1765379448974,-500.0,0.00014981,2]
[398112038,1765379448983,-500.0,0.00014981,2]
[398112040,1765379448992,-500.0,0.00014981,2]
[398112042,1765379449002,-1384.94,0.00014981,2]
[398112044,1765379449011,-500.0,0.00014981,2]
[398112046,1765379449021,-500.0,0.00014981,2]
[398112047,1765379449030,-700.56,0.00014981,2]
[398112050,1765379449039,-500.0,0.00014981,2]
[398112051,1765379449048,-500.0,0.00014981,2]
[398112053,1765379449057,-500.0,0.00014981,2]
[398112055,1765379449067,-659.95,0.00014981,2]
[398112057,1765379449076,-1658.64,0.00014981,2]
[398112060,1765379449085,-1806.74,0.00014981,2]
[398112061,1765379449094,-500.0,0.00014981,2]
[398112063,1765379449103,-500.0,0.00014981,2]
[398112065,1765379449112,-1287.71,0.00014981,2]
[398112067,1765379449121,-500.0,0.00014981,2]
[398112069,1765379449130,-500.0,0.00014981,2]
[398112071,1765379449143,-500.0,0.00014981,2]
[398112073,1765379449152,-500.0,0.00014981,2]
[398112075,1765379449161,-670.17,0.00014981,2]
[398112077,1765379449171,-758.41,0.00014981,2]
[398112079,1765379449180,-500.0,0.00014981,2]
[398112081,1765379449190,-500.0,0.00014981,2]
[398112083,1765379449199,-3604.67,0.00014981,2]
[398112085,1765379449208,-500.0,0.00014981,2]
[398112087,1765379449218,-2950.48,0.00014981,2]
[398112089,1765379449228,-500.0,0.00014981,2]
[398112091,1765379449237,-500.0,0.00014981,2]
[398112093,1765379449246,-500.0,0.00014981,2]
[398112095,1765379449258,-500.0,0.00014981,2]
[398112097,1765379449267,-500.0,0.00014981,2]
[398112098,1765379449277,-500.0,0.00014981,2]
[398112099,1765379449286,-500.0,0.00014981,2]
[398112100,1765379449295,-1000.0,0.00014981,2]
[398112101,1765379449304,-500.0,0.00014981,2]
[398112102,1765379449314,-1147.14,0.00014981,2]
[398112103,1765379449323,-500.0,0.00014981,2]
[398112104,1765379449332,-500.0,0.00014981,2]
[398112105,1765379449341,-500.0,0.00014981,2]
[398112106,1765379449350,-500.0,0.00014981,2]
[398112108,1765379449361,-500.0,0.00014981,2]
[398112109,1765379449370,-534.97568083,0.00014981,2]
[398112111,1765379449380,-500.0,0.00014981,2]
[398112113,1765379449391,-501.84290469,0.00014981,2]
[398112115,1765379449400,-500.0,0.00014981,2]
[398112117,1765379449409,-500.0,0.00014981,2]
[398112119,1765379449418,-512.73868628,0.00014981,2]
[398112121,1765379449427,-2511.61,0.00014981,2]
[398112123,1765379449437,-500.0,0.00014981,2]
[398112125,1765379449446,-500.0,0.00014981,2]
[398112127,1765379449455,-500.0,0.00014981,2]
[398112129,1765379449465,-505.94500049,0.00014981,2]
[398112131,1765379449473,-500.0,0.00014981,2]
[398112133,1765379449482,-939.39,0.00014981,2]
[398112135,1765379449492,-2133.29,0.00014981,2]
[398112137,1765379449501,-500.0,0.00014981,2]
[398112139,1765379449512,-500.0,0.00014981,2]
[398112141,1765379449521,-736.12,0.00014981,2]
[398112143,1765379449530,-161.24606353,0.00014981,2]
[398112145,1765379449539,-720.66,0.00014981,2]
[398112147,1765379449549,-500.0,0.00014981,2]
[398112149,1765379449558,-500.0,0.00014981,2]
[398112151,1765379449567,-1856.35,0.00014981,2]
[398112153,1765379449575,-863.88,0.00014981,2]
[398112155,1765379449584,-500.0,0.00014981,2]
[398112157,1765379449593,-500.0,0.00014981,2]
[398112159,1765379449603,-500.0,0.00014981,2]
[398112161,1765379449612,-500.0,0.00014981,2]
[398112163,1765379449621,-500.0,0.00014981,2]
[398112165,1765379449630,-1315.14,0.00014981,2]
[398112167,1765379449639,-500.0,0.00014981,2]
[398112169,1765379449648,-1651.63,0.00014981,2]
[398112171,1765379449657,-1022.14,0.00014981,2]
[398112173,1765379449666,-500.0,0.00014981,2]
[398112175,1765379449675,-500.0,0.00014981,2]
[398112177,1765379449685,-736.13,0.00014981,2]
[398112179,1765379449694,-500.0,0.00014981,2]
[398112181,1765379449703,-500.0,0.00014981,2]
[398112183,1765379449712,-500.0,0.00014981,2]
[398112185,1765379449721,-500.0,0.00014981,2]
[398112187,1765379449730,-500.0,0.00014981,2]
[398112189,1765379449739,-500.0,0.00014981,2]
[398112191,1765379449749,-500.0,0.00014981,2]
[398112193,1765379449758,-500.0,0.00014981,2]
[398112195,1765379449768,-500.38137107,0.00014981,2]
[398112197,1765379449777,-633.1161795,0.00014981,2]
[398112199,1765379449787,-500.0,0.00014981,2]
[398112201,1765379449797,-500.0,0.00014981,2]
[398112203,1765379449806,-500.0,0.00014981,2]
[398112205,1765379449815,-500.0,0.00014981,2]
[398112207,1765379449824,-500.0,0.00014981,2]
[398112209,1765379449833,-510.82,0.00014981,2]
[398112211,1765379449841,-650.0,0.00014981,2]
[398112213,1765379449850,-500.0,0.00014981,2]
[398112215,1765379449859,-500.0,0.00014982,2]
[398112217,1765379449868,-151.0,0.00014982,2]
[398112219,1765379449877,-151.0,0.00014982,2]
[398112221,1765379449886,-39623.1,0.00014982,2]
[398112222,1765379449895,-500.0,0.00014982,2]
[398112223,1765379449905,-500.0,0.00014982,2]
[398112224,1765379449914,-500.0,0.00014982,2]
[398112225,1765379449926,-500.0,0.00014982,2]
[398112226,1765379449935,-500.0,0.00014982,2]
[398112227,1765379449944,-500.0,0.00014982,2]
[398112228,1765379449953,-500.0,0.00014982,2]
[398112229,1765379449961,-1666.98,0.00014982,2]
[398112230,1765379449970,-1666.98,0.00014982,2]
[398112231,1765379449979,-1666.98,0.00014982,2]
[398112232,1765379449988,-1666.98,0.00014982,2]
[398112233,1765379449996,-1666.98,0.00014982,2]
[398112234,1765379450005,-1666.98,0.00014982,2]
[398112235,1765379450013,-1666.98,0.00014982,2]
[398112236,1765379450030,-1666.98,0.00014982,2]
[398112237,1765379450043,-1666.98,0.00014982,2]
[398112238,1765379450052,-500.0,0.00014982,2]
[398112239,1765379450061,-500.0,0.00014982,2]
[398112240,1765379450070,-500.0,0.00014982,2]
[398112241,1765379450080,-500.0,0.00014982,2]
[398112242,1765379450089,-500.0,0.00014982,2]
[398112243,1765379450098,-500.0,0.00014982,2]
[398112245,1765379450107,-532.35831584,0.00014982,2]
[398112246,1765379450116,-500.0,0.00014983,2]
[398112247,1765379450125,-500.0,0.00014983,2]
[398112248,1765379450135,-500.0,0.00014983,2]
[398112249,1765379450145,-500.0,0.00014983,2]
[398112250,1765379450154,-500.0,0.00014983,2]
[398112251,1765379450163,-500.0,0.00014983,2]
[398112252,1765379450172,-967.66,0.00014983,2]
[398112253,1765379450181,-877.18,0.00014983,2]
[398112254,1765379450189,-151.0,0.00014983,2]
[398112256,1765379450198,-519.06,0.00014983,2]
[398112258,1765379450207,-2450.94,0.00014983,2]
[398112260,1765379450216,-500.48841527,0.00014983,2]
[398112261,1765379450226,-926.56,0.00014983,2]
[398112263,1765379450234,-500.0,0.00014983,2]
[398112265,1765379450243,-993.37,0.00014983,2]
[398112267,1765379450252,-500.0,0.00014983,2]
[398112269,1765379450261,-152.048235,0.00014983,2]
[398112271,1765379450270,-1645.09,0.00014983,2]
[398112273,1765379450279,-500.0,0.00014983,2]
[398112275,1765379450289,-500.0,0.00014983,2]
[398112277,1765379450298,-1000.0,0.00014983,2]
[398112278,1765379450307,-500.0,0.00014983,2]
[398112280,1765379450316,-500.0,0.00014983,2]
[398112282,1765379450326,-500.0,0.00014983,2]
[398112284,1765379450335,-500.0,0.00014983,2]
[398112285,1765379450344,-500.2722389,0.00014983,2]
[398112286,1765379450353,-500.12094422,0.00014983,2]
[398112287,1765379450365,-500.0,0.00014983,2]
[398112288,1765379450374,-500.0,0.00014983,2]
[398112289,1765379450383,-500.0,0.00014983,2]
[398112290,1765379450394,-507.13313422,0.00014983,2]
[398112291,1765379450403,-500.0,0.00014983,2]
[398112292,1765379450412,-1068.69,0.00014983,2]
[398112293,1765379450422,-742.08,0.00014983,2]
[398112294,1765379450432,-1609.9,0.00014983,2]
[398112295,1765379450443,-1252.51,0.00014983,2]
[398112296,1765379450453,-500.0,0.00014983,2]
[398112297,1765379450462,-500.0,0.00014983,2]
[398112298,1765379450471,-500.0,0.00014983,2]
[398112299,1765379450481,-871.39,0.00014983,2]
[398112300,1765379450489,-500.0,0.00014983,2]
[398112301,1765379450498,-716.71,0.00014983,2]
[398112302,1765379450507,-845.3,0.00014983,2]
[398112303,1765379450518,-2629.5,0.00014983,2]
[398112304,1765379450526,-1214.81,0.00014983,2]
[398112305,1765379450535,-500.0,0.00014983,2]
[398112306,1765379450545,-500.0,0.00014983,2]
[398112307,1765379450554,-557.27,0.00014983,2]
[398112308,1765379450563,-1344.46,0.00014983,2]
[398112309,1765379450572,-501.09518598,0.00014983,2]
[398112310,1765379450581,-863.46,0.00014983,2]
[398112311,1765379450590,-500.0,0.00014983,2]
[398112312,1765379450599,-500.0,0.00014983,2]
[398112313,1765379450608,-1131.73,0.00014983,2]
[398112314,1765379450617,-537.95,0.00014983,2]
[398112315,1765379450626,-1850.58,0.00014983,2]
[398112316,1765379450635,-1018.83,0.00014983,2]
[398112317,1765379450645,-500.0,0.00014983,2]
[398112318,1765379450654,-500.0,0.00014983,2]
[398112319,1765379450664,-500.0,0.00014983,2]
[398112320,1765379450673,-500.0,0.00014983,2]
[398112321,1765379450682,-500.0,0.00014983,2]
[398112322,1765379450691,-500.0,0.00014983,2]
[398112323,1765379450700,-500.0,0.00014983,2]
[398112324,1765379450708,-500.0,0.00014983,2]
[398112325,1765379450717,-500.0,0.00014983,2]
[398112326,1765379450727,-500.0,0.00014983,2]
[398112327,1765379450736,-656.83,0.00014983,2]
[398112328,1765379450745,-500.0,0.00014983,2]
[398112329,1765379450754,-500.0,0.00014983,2]
[398112330,1765379450763,-500.0,0.00014983,2]
[398112331,1765379450772,-500.0,0.00014983,2]
[398112332,1765379450781,-1654.54,0.00014983,2]
[398112333,1765379450790,-500.0,0.00014983,2]
[398112334,1765379450799,-1955.12,0.00014983,2]
[398112335,1765379450808,-993.81,0.00014983,2]
[398112336,1765379450817,-786.9,0.00014983,2]
[398112337,1765379450826,-500.0,0.00014983,2]
[398112338,1765379450835,-4085.6,0.00014983,2]
[398112339,1765379450844,-655.11,0.00014983,2]
[398112340,1765379450852,-500.0,0.00014983,2]
[398112341,1765379450862,-500.0,0.00014983,2]
[398112342,1765379450871,-500.0,0.00014983,2]
[398112343,1765379450880,-1265.32,0.00014983,2]
[398112344,1765379450889,-501.13,0.00014983,2]
[398112345,1765379450899,-454.27243144,0.00014983,2]
[398112346,1765379450908,-646.15,0.00014983,2]
[398112347,1765379450917,-545.63,0.00014983,2]
[398112348,1765379450926,-500.0,0.00014983,2]
[398112349,1765379450935,-339.4486777,0.00014983,2]
[398112350,1765379450943,-500.0,0.00014983,2]
[398112351,1765379450952,-2073.03,0.00014983,2]
[398112352,1765379450962,-1892.42,0.00014983,2]
[398112353,1765379450970,-500.0,0.00014983,2]
[398112354,1765379450979,-578.94,0.00014983,2]
[398112355,1765379450988,-500.0,0.00014983,2]
[398112356,1765379450997,-511.96,0.00014983,2]
[398112357,1765379451006,-500.0,0.00014983,2]
[398112358,1765379451015,-500.0,0.00014983,2]
[398112359,1765379451024,-500.0,0.00014983,2]
[398112360,1765379451034,-202.89,0.00014983,2]
[398112361,1765379451044,-1666.98,0.00014983,2]
[398112362,1765379451053,-1666.98,0.00014983,2]
[398112363,1765379451063,-1666.98,0.00014983,2]
[398112364,1765379451072,-1666.98,0.00014983,2]
[398112365,1765379451081,-1666.98,0.00014983,2]
[398112366,1765379451091,-1666.98,0.00014983,2]
[398112367,1765379451099,-1084.83,0.00014983,2]
[398112368,1765379451108,-500.0,0.00014984,2]
[398112369,1765379451117,-500.0,0.00014984,2]
[398112370,1765379451126,-500.0,0.00014984,2]
[398112371,1765379451135,-507.31937852,0.00014984,2]
[398112372,1765379451145,-687.76,0.00014984,2]
[398112373,1765379451154,-500.0,0.00014984,2]
[398112374,1765379451163,-500.0,0.00014984,2]
[398112375,1765379451172,-500.0,0.00014984,2]
[398112376,1765379451181,-726.74,0.00014984,2]
[398112377,1765379451190,-500.0,0.00014984,2]
[398112378,1765379451199,-500.0,0.00014984,2]
[398112379,1765379451208,-500.0,0.00014984,2]
[398112380,1765379451219,-558.96,0.00014984,2]
[398112381,1765379451230,-500.0,0.00014984,2]
[398112382,1765379451239,-500.0,0.00014984,2]
[398112383,1765379451248,-547.39,0.00014984,2]
[398112384,1765379451257,-500.0,0.00014984,2]
[398112385,1765379451266,-553.29162102,0.00014984,2]
[398112386,1765379451274,-523.10488456,0.00014984,2]
[398112387,1765379451283,-500.0,0.00014984,2]
[398112388,1765379451292,-500.0,0.00014984,2]
[398112389,1765379451301,-573.86337243,0.00014984,2]
[398112390,1765379451310,-500.0,0.00014984,2]
[398112391,1765379451319,-500.0,0.00014984,2]
[398112392,1765379451328,-500.0,0.00014984,2]
[398112393,1765379451336,-500.0,0.00014984,2]
[398112394,1765379451346,-500.0,0.00014984,2]
[398112395,1765379451355,-500.0,0.00014984,2]
[398112396,1765379451368,-500.0,0.00014984,2]
[398112397,1765379451376,-1133.89,0.00014984,2]
[398112398,1765379451385,-500.0,0.00014984,2]
[398112399,1765379451396,-500.0,0.00014984,2]
[398112400,1765379451406,-500.0,0.00014984,2]
[398112401,1765379451415,-500.0,0.00014984,2]
[398112402,1765379451424,-500.0,0.00014984,2]
[398112403,1765379451433,-500.0,0.00014984,2]
[398112404,1765379451443,-761.35,0.00014984,2]
[398112405,1765379451453,-500.0,0.00014984,2]
[398112406,1765379451462,-500.0,0.00014984,2]
[398112407,1765379451471,-500.0,0.00014984,2]
[398112408,1765379451480,-1174.14,0.00014984,2]
[398112409,1765379451489,-500.0,0.00014984,2]
[398112410,1765379451498,-500.0,0.00014984,2]
[398112411,1765379451507,-616.89,0.00014984,2]
[398112412,1765379451517,-500.0,0.00014984,2]
[398112413,1765379451527,-2204.6,0.00014984,2]
[398112414,1765379451536,-500.0,0.00014984,2]
[398112415,1765379451545,-500.0,0.00014984,2]
[398112416,1765379451554,-500.0,0.00014984,2]
[398112417,1765379451563,-501.05377893,0.00014984,2]
[398112418,1765379451572,-500.0,0.00014984,2]
[398112419,1765379451581,-418.74694534,0.00014984,2]
[398112420,1765379451591,-500.0,0.00014984,2]
[398112421,1765379451600,-1284.81,0.00014984,2]
[398112422,1765379451609,-500.0,0.00014984,2]
[398112423,1765379451618,-729.3,0.00014984,2]
[398112424,1765379451627,-500.0,0.00014984,2]
[398112425,1765379451637,-500.0,0.00014984,2]
[398112426,1765379451646,-500.0,0.00014984,2]
[398112427,1765379451655,-500.0,0.00014984,2]
[398112428,1765379451665,-1209.53,0.00014984,2]